Cogmind - Beta 16.1 @@@ ROGUE MODE // 2026.02.17 @ 21:35:59 Player: Megaknight51 Result: Destroyed by Y-45 Defender with Beam Rifle Performance ------------- Evolutions (0) 0 Regions Visited (2) 400 Robots Destroyed (29) 145 Value Destroyed (639) 639 Prototype IDs (13) 260 Alien Tech Used (0) 0 Bonus (0) 0 TOTAL SCORE: 1444 Bonus ------- None Cogmind --------- Core Integrity 0/250 Matter 290/300 Energy 222/250 System Corruption 0% Temperature Cool (9) Movement Rolling (135) Ox3 Location -10/Subcaves Parts ------- > --- POWER (1) -------- Ion Engine > --- PROPULSION (2) --- Wheel Compact Wheel > --- UTILITY (2) ------ Huge Storage Unit Seismic Detector > --- WEAPON (2) ------- EM Pulse Gun EM Pulse Gun > --- INVENTORY (25) --- Ion Engine Subdweller Power Source Subdweller Power Source Light Treads Light Treads Subdweller Monowheel Subdweller Monowheel Signal Interpreter Improved Terrain Scanner Seismic Detector Subdweller Laser Subdweller Laser Subdweller Laser Subdweller Beam Cannon Subdweller Beam Cannon Subdweller Beam Cannon Powered Cannon Light Assault Rifle Light Assault Rifle Subdweller Shrapnel Launcher Datajack Mining Laser Makeshift Sword Peak State ------------ > --- POWER ------------ Ion Engine > --- PROPULSION ------- Wheel Compact Wheel > --- UTILITY ---------- Huge Storage Unit Seismic Detector > --- WEAPON ----------- EM Pulse Gun Makeshift Sword > --- INVENTORY -------- Ion Engine Subdweller Power Source Light Treads Light Treads Subdweller Monowheel Subdweller Monowheel Signal Interpreter Improved Terrain Scanner Seismic Detector EM Pulse Gun EM Pulse Gun EM Pulse Gun Subdweller Laser Subdweller Beam Cannon Subdweller Beam Cannon Subdweller Beam Cannon Powered Cannon Light Assault Rifle Light Assault Rifle Datajack Mining Laser [Rating: 14] Favorites ----------- Power Light Ion Engine Engine Light Ion Engine Propulsion Wheel Treads Light Treads Wheel Wheel Utility Seismic Detector Device Seismic Detector Storage Huge Storage Unit Weapon EM Pulse Gun Energy Gun EM Pulse Gun Ballistic Gun Light Assault Rifle Special Weapon Mining Laser Slashing Weapon Makeshift Sword Build | -11 -10 -10 ------- Run | Yrd Mat Sub Slots Evolved . | . . . Power . | . . . Propulsion . | . . . Utility . | . . . Weapon . | . . . Parts Attached 29 | 7 15 7 Power 5 | 1 3 1 Engine 5 | 1 3 1 Core . | . . . Reactor . | . . . Propulsion 9 | 2 5 2 Treads 1 | . 1 . Leg . | . . . Wheel 8 | 2 4 2 Hover . | . . . Flight . | . . . Utility 4 | 2 2 . Device 1 | 1 . . Storage 3 | 1 2 . Processor . | . . . Hackware . | . . . Protection . | . . . Artifact . | . . . Weapon 11 | 2 5 4 Energy Gun 6 | . 4 2 Energy Cannon . | . . . Ballistic Gun 3 | 2 1 . Ballistic Cannon . | . . . Launcher . | . . . Special Weapon 1 | . . 1 Impact Weapon . | . . . Slashing Weapon 1 | . . 1 Piercing Weapon . | . . . Special Melee Weapon . | . . . Unidentified Prototypes . | . . . Parts Lost 13 | . 8 5 Power 2 | . 1 1 Propulsion 6 | . 4 2 Utility . | . . . Weapon 5 | . 3 2 Highest Loss Streak 4 | . 4 2 To Critical Strikes . | . . . Average Backups 16 | 1 14 21 Power 1 | . 1 2 Propulsion 3 | . 3 5 Utility 2 | . 3 3 Weapon 7 | 1 6 9 Tool/Special . | . . . Unused Backups 17 | . . 17 Power 2 | . . 2 Propulsion 3 | . . 3 Utility 3 | . . 3 Weapon 8 | . . 8 Tool/Special 1 | . . 1 Average Slot Usage (%) 93 | . 94 91 Engine 13 | . 13 13 Treads 4 | . 7 . Wheel 19 | . 19 20 Device 11 | . 9 14 Storage 14 | . 14 14 Energy Gun 21 | . 21 20 Ballistic Gun 3 | . 6 . Slashing Weapon 2 | . . 7 Peak Build Rating 14 | 7 8 14 Average Rating 8 | 5 7 11 On Entrance 4 | . 7 7 Avg Prop Armor Cover (%) 3 | . 3 . Naked Turns . | . . . Heaviest Build 90 | 11 90 90 Greatest Support 32 | 20 32 26 Greatest Overweight (x) 8 | . 4 8 Average Overweight (x) 2 | . 1 5 Largest Inventory Capacity 25 | 8 25 25 Average Capacity 20 | 6 17 25 Most Carried 25 | 6 19 25 Average Carried 16 | 1 14 22 Final Capacity 25 | 8 25 25 Final Carried 24 | 6 16 24 Class Distribution -------------------- 95% | Mutant 4% | Scavenger-Mutant Dominant Class ---------------- Mutant | -10/Materials Mutant | -10/Subcaves Resources | -11 -10 -10 ----------- Run | Yrd Mat Sub Matter Collected 576 | 286 185 105 Remotely . | . . . Salvage Created 1033 | 92 734 207 Parts 68 | 6 53 9 Haulers Intercepted 2 | . 2 . Recyclers Shooed 2 | 1 1 . Parts Field Recycled . | . . . Retrieved Matter . | . . . Parts Self-Destructed . | . . . Prevented . | . . . Parts Restored . | . . . Kills | -11 -10 -10 ------- Run | Yrd Mat Sub Combat Hostiles Destroyed 20 | . 17 3 Guns 18 | . 16 2 AOE 1 | . 1 . Classes Destroyed 9 | 2 5 2 Builder 1 | . 1 . Tunneler 4 | 2 2 . Hauler 2 | . 2 . Recycler 1 | 1 . . Operator 1 | . 1 . Swarmer 6 | . 6 . Grunt 11 | . 11 . Cobbler 1 | . . 1 Subdweller 3 | . . 3 Best Kill Streak 3 | 2 3 1 Combat Bots Only 3 | . 3 1 Max Kills in Single Turn 2 | 1 2 1 Gunslinging 1 | . 1 . Exploded 1 | . 1 . Melee . | . . . Uniques/NPCs Destroyed . | . . . Combat | -11 -10 -10 -------- Run | Yrd Mat Sub Hostile Shots Fired 137 | . 115 22 Missed 43 | . 37 6 Hits 94 | . 78 16 Projectile 94 | . 78 16 Damage Taken 1161 | . 845 316 Core 254 | . 210 44 Absorbed by Shields . | . . . Core Remaining (%) 100 | 100 . . Volleys Fired 93 | 8 69 16 Largest 2 | 2 2 2 Hottest 100 | 40 80 100 Shots Fired 183 | 16 136 31 Gun 182 | 16 136 30 Cannon . | . . . Launcher . | . . . Special 1 | . . 1 Kinetic 73 | 16 57 . Thermal 1 | . . 1 Explosive . | . . . Electromagnetic 109 | . 79 30 Robot Hit Streak 13 | 3 9 13 Robot Miss Streak 3 | 2 3 2 Penetration Max . | . . . Secondary Targets 1 | . 1 . Max Gunslinging Chain 1 | . 1 . Shots Hit Robots 125 | 8 88 29 Core Hits 51 | 5 38 8 Critical Kills . | . . . Critical Parts Destroyed . | . . . Critical Strikes 1 | . . 1 Corrupt 1 | . . 1 Melee Attacks 23 | . . 23 Impact . | . . . Slashing 23 | . . 23 Piercing . | . . . Sneak Attacks 3 | . . 3 Combat Hostiles . | . . . Follow-up Attacks . | . . . Damage Inflicted 1644 | 76 1201 367 Guns 1390 | 76 1019 295 Cannons . | . . . Explosions 172 | . 172 . Melee 72 | . . 72 Ramming 10 | . 10 . Kinetic 400 | 76 324 . Thermal 172 | . 172 . Explosive . | . . . Electromagnetic 990 | . 695 295 Impact . | . . . Slashing 72 | . . 72 Piercing . | . . . Highest Corruption . | . . . Average Corruption . | . . . Corruption Purged . | . . . Corruption Blocked . | . . . Overload Shots . | . . . Overflow Damage 3 | . 3 . Projectiles . | . . . Explosions 3 | . 3 . Melee . | . . . Knockbacks . | . . . Impact . | . . . Kinetic . | . . . Secondary . | . . . Self-Inflicted Damage 5 | . 5 . Shots . | . . . Rammed 1 | . 1 . Targets Rammed 1 | . 1 . Kicked . | . . . Crushed . | . . . Highest Temperature 180 | . 180 . Average Temperature 49 | . 49 . Received Heat Transfer 426 | . 345 81 Siege Activations . | . . . Martial Activations . | . . . Shielding Activations . | . . . Robots Disrupted . | . . . Combat Hostiles . | . . . Robots Corrupted 1 | . . 1 Combat Hostiles 1 | . . 1 Parts Fried 3 | . 1 2 Impact Corruptions . | . . . Robots Melted . | . . . Combat Hostiles . | . . . Parts Melted 1 | . . 1 Heat Transferred 200 | . 200 . Parts Sabotaged . | . . . Parts Stolen . | . . . Parts Stripped . | . . . Power Chain Reactions 4 | . 4 . Alert | -11 -10 -10 ------- Run | Yrd Mat Sub Maximum Alert Level . | . . . Low Security (%) 100 | 100 100 . Level 1 . | . . . Level 2 . | . . . Level 3 . | . . . Level 4 . | . . . Level 5 . | . . . High Security . | . . . Max Security . | . . . Peak Influence 110 | 5 110 . Initial . | . . . Average 39 | 1 41 . Influence Increases 652 | 15 637 . Destroy 0b10 Robot/C 340 | . 340 . Destroy 0b10 Robot/NC 45 | 15 30 . Destroy Leader 74 | . 74 . Successful Hack 15 | . 15 . Select Force Hacks 60 | . 60 . Destroy Structure 13 | . 13 . Partial Spotted 15 | . 15 . Lose Combat Pursuer 90 | . 90 . Influence Decreases 652 | 15 564 73 Entered New Map 36 | . . 36 Time Decay 438 | 15 396 27 Lost Part 80 | . 70 10 Purge Threat 98 | . 98 . Squads Dispatched 4 | . 4 . Investigation 2 | . 2 . Extermination . | . . . Reinforcement 2 | . 2 . Assault . | . . . Garrison . | . . . Intercept . | . . . Searches Triggered . | . . . Construction Impeded . | . . . Haulers Reinforced . | . . . Active Scanning Responses . | . . . Cargo Convoy Interrupts . | . . . Stealth | -11 -10 -10 --------- Run | Yrd Mat Sub Distress Signals 3 | . 3 . Communications Jammed . | . . . Distress Signals . | . . . Times Spotted 43 | . 39 4 Peak Tracking Total 5 | . 5 1 Tactical Retreats 5 | . 5 . Traps | -11 -10 -10 ------- Run | Yrd Mat Sub Traps Triggered . | . . . Indirectly . | . . . Trap Hack Attempts . | . . . Triggered . | . . . Disarmed . | . . . Reprogrammed . | . . . Reused . | . . . Traps Extracted . | . . . Installed . | . . . Triggered . | . . . Machines | -11 -10 -10 ---------- Run | Yrd Mat Sub Machines Disabled 1 | . . 1 Max in Single Turn 1 | . . 1 Machines Repaired . | . . . Machines Dismantled . | . . . Machines Sabotaged . | . . . Overloaded Fab Kills . | . . . Hacking | -11 -10 -10 --------- Run | Yrd Mat Sub Machines Accessed 8 | . 7 1 Terminals 5 | . 5 . Fabricators . | . . . Repair Stations . | . . . Recycling Units 2 | . 2 . Scanalyzers . | . . . Garrison Access . | . . . Total Hacks 23 | . 22 1 Successful 8 | . 7 1 Failed 15 | . 15 . Catastrophic 3 | . 3 . Database Lockouts . | . . . Manual 17 | . 17 . Terminals 20 | . 20 . Fabricators . | . . . Repair Stations . | . . . Recycling Units 2 | . 2 . Scanalyzers . | . . . Garrison Access . | . . . Terminal Hacks 3 | . 2 1 Unreport Threat 2 | . 2 . Proto ID Catalog 1 | . . 1 Fabricator Hacks . | . . . Repair Station Hacks . | . . . Recycling Unit Hacks . | . . . Scanalyzer . | . . . Garrison Access Hacks . | . . . Unauthorized Hacks 5 | . 5 . Terminals 3 | . 3 . Botnet 3 | . 3 . Fabricators . | . . . Repair Stations . | . . . Recycling Units 2 | . 2 . Tunnel 2 | . 2 . Scanalyzers . | . . . Garrison Access . | . . . Data Cores Recovered . | . . . Used . | . . . Hacking Detections 4 | . 4 . Full Trace Events 3 | . 3 . Feedback Events . | . . . Feedback Blocked . | . . . Robot Schematics Acquired . | . . . Robots Built . | . . . Authchips . | . . . Time . | . . . Total Robot Build Rating . | . . . Part Schematics Acquired . | . . . Parts Built . | . . . Authchips . | . . . Time . | . . . Total Part Build Rating . | . . . Part Studies Acquired . | . . . Parts Repaired . | . . . Time . | . . . Parts Recycled . | . . . Recycled Matter . | . . . Retrieved Matter . | . . . Retrieved Components . | . . . Parts Scanalyzed . | . . . Part Schematics Acquired . | . . . Parts Damaged . | . . . Bothacking | -11 -10 -10 ------------ Run | Yrd Mat Sub Used RIF Installer . | . . . Robots Hacked . | . . . Non-combat . | . . . Combat . | . . . Robot Hacks Applied . | . . . Relay Couplers Released . | . . . Fabnet Peak Effective % . | . . . Robots Rewired . | . . . Allies Hacked . | . . . Hacks Repelled . | . . . Allies | -11 -10 -10 -------- Run | Yrd Mat Sub Total Allies . | . . . Largest Group . | . . . Highest-Rated Group . | . . . Highest-Rated Ally . | . . . Total Orders . | . . . Ally Attacks . | . . . Total Damage . | . . . Kills . | . . . Allies Corrupted . | . . . Allies Melted . | . . . Intel | -11 -10 -10 ------- Run | Yrd Mat Sub Active Infowar (turns) 2069 | 35 1102 932 Seismic 2069 | 35 1102 932 Robot Analysis Total . | . . . Derelict Logs Recovered . | . . . Drone Launches . | . . . Drone Recoveries . | . . . Exploration | -11 -10 -10 ------------- Run | Yrd Mat Sub Turns Passed 2563 | 86 1545 932 Spaces Moved 1316 | 63 768 485 Core 3 | 3 . . Treads 295 | . 295 . Legs . | . . . Wheels 1018 | 60 473 485 Hover . | . . . Flight . | . . . Fastest Speed 50 | 50 80 135 Average Speed 161 | 78 165 164 Slowest Speed 240 | 80 240 200 Overloaded Moves . | . . . Propulsion Burnouts . | . . . Robots Hopped . | . . . Potential Cave-ins . | . . . Cave-ins Triggered . | . . . Exploration Rate (%) 39 | 3 90 24 Regions Visited 2 Branch Regions 1 Pre-discovered Areas 2 | . 2 . Known Exits Taken . | . . . Unknown Exits Taken 2 | 1 1 . Scrap Searched 6 | . . 6 Spaces Dug 1 | . . 1 Terrain Destroyed 13 | . 12 1 Melee 1 | . . 1 Projectile . | . . . AOE 12 | . 12 . Terrain Rammed . | . . . Walls Destroyed . | . . . Machines Disabled . | . . . Actions | -11 -10 -10 --------- Run | Yrd Mat Sub Total 1558 | 83 914 561 Wait 56 | . 45 11 Move 1314 | 62 767 485 Hop . | . . . Pick Up 32 | 6 13 13 Fast Attach 10 | 7 3 . Attach 11 | . 5 6 Detach 1 | . 1 . Swap 14 | . 7 7 Drop 3 | . 3 . Fire 93 | 8 69 16 Melee 23 | . . 23 Ram 1 | . 1 . Kick . | . . . Crush . | . . . Escape Stasis . | . . . Rewire . | . . . Trap . | . . . Miscellaneous . | . . . Route ------- -11/Scrapyard -10/Materials (discovered 5 exits: [*Mat x3] / [*Min] / *Sub) -10/Subcaves History --------- Turn | Location | Event 23 | -11/Scrapyard | Discovered new exit (range 15) 87 | -11/Scrapyard | Entered Materials 314 | -10/Materials | Build established: Mutant 314 | -10/Materials | Lost 4 parts (1p2n1w) 468 | -10/Materials | Discovered new exit (range 13) 678 | -10/Materials | Discovered new exit (range 9) 1085 | -10/Materials | Core integrity fell below 50% 1186 | -10/Materials | Discovered new exit (range 16) 1342 | -10/Materials | Core integrity fell below 20% 1374 | -10/Materials | Lost 3 parts (2n1w) 1418 | -10/Materials | Discovered new exit (range 4) 1619 | -10/Materials | Discovered new exit (range 10) 1632 | -10/Materials | Entered Subcaves 1633 | -10/Subcaves | Approached by a straggling Scientist 1672 | -10/Subcaves | Disturbed a concealed Subdweller 1940 | -10/Subcaves | Visited 4L-MR0's lab 1967 | -10/Subcaves | Found Powered Cannon 2451 | -10/Subcaves | A swath of the cavern ceiling suddenly collapsed 2564 | -10/Subcaves | Destroyed by Y-45 Defender with Beam Rifle Last Messages --------------- 02269_ Acquired Sub. Laser. 02281_ EM Pulse Gun destroyed. 02298_ N3-V34(R) destroyed. 02302_ Acquired Corrupted Sub. Power Source. 02305_ Acquired 30 matter. 02310_ Searching scrap... 02310_ Found Sub. Machine Gun. 02310_ Found Sub. Shrapnel Launcher. 02310_ Found 33 Matter. 02311_ Searching scrap... 02311_ Found Battle Cannon. 02311_ Found 42 Matter. 02313_ Searching scrap... 02313_ Found Sub. Laser. 02313_ Found 34 Matter. 02315_ Acquired Sub. Laser. 02325_ Acquired Sub. Shrapnel Launcher. 02384_ Sneak attack on XU-FJH(u). 02386_ Acquired 10 matter. A swath of the cavern ceiling suddenly collapses. Map ----- +----------------------------------------------------+ | ?????????????????????????????????????????????????? | | ?????????????????????????????????????????????????? | | ?????????????????????????????????????????????????? | | ?????????????????????????????????????????????????? | | ?????????????????????????????????????????????????? | | ?????????????????????????????????????????????????? | | ?????????????????????????????????????????????????? | | ?????????????????????????????????????????????????? | | ?????????????????????????????????????????????????? | | ?????????????????????????????????????????????????? | | ###?????????##???????????????????????????????????? | | ##?????### #???????????????????????????????????? | | ##???## #?????####???????##??##?????????????? | | #???# #???### ##?????? ### #????? ??????? | | ##??# #??## #?????? #?? ??????? | | ""#??# ##?## #???????? ## ?????? | | #"""##### #### #??????## #??????? | | ###"#"### ## ######## #??????? | | ####" """# ## #???????? | | ??###"##### #???????? | | ?? #"##??# ????? | | ?? "## ??### ## ????? | | ?# ## #???# ### ## ?????? | | ?### ##??## ##?## Y##### ####?????? | | ????# ##???# #???# ### ##????????? | | ?????##????# #???## @##?? ## #?????????? | | ???????????## ####??## #??? #?# ????????? | | ???????????# #???# #??? #?? ???????? | | ???????????# ## #??# ##??? #??? ???????? | | ??????????# "### ""#?# ##???? ???? ????????? | | ??????????# "???"" ## #????? ???? ????????? | | ??????????# "??#"" ## ??????## ?????????????? | | ??????????## ??##"#### ???????? ??????????????? | | ???????????# ???""#??# ???????? ?????????????? | | ???????????? ????????## ????????????????????????? | | ??????????????????????## ????????????????????????? | | ???????????????????????? ????????????????????????? | | ????????????????????????#????????????????????????? | | ?????????????????????????????????????????????????? | | ?????????????????????????????????????????????????? | | ?????????????????????????????????????????????????? | | ?????????????????????????????????????????????????? | | ?????????????????????????????????????????????????? | | ?????????????????????????????????????????????????? | | ?????????????????????????????????????????????????? | | ?????????????????????????????????????????????????? | | ?????????????????????????????????????????????????? | | ?????????????????????????????????????????????????? | | ?????????????????????????????????????????????????? | | ?????????????????????????????????????????????????? | +----------------------------------------------------+ Best States ------------- Heat Dissipation 25 Energy Generation 10 Energy Capacity 250 Matter Stores 300 Matter Capacity 300 Sight Range 16 Terrain Scan Density 10 Evasion (%) 44 Recoil Reduction 1 Item Schematics ----------------- None Robot Schematics ------------------ None Fabricated ------------ Nothing Repaired ---------- Nothing Studied --------- None Alien Tech Used ----------------- None Achievements -------------- None Challenges ------------ None Game ------ Seed BlinkForceDeck Manual? 0 Play Time 00:13:05 Cumulative 85.4 hours Start 2026.02.17 @ 21:23:46 End 2026.02.17 @ 21:35:59 Sessions 1 Manual Loads 0 Difficulty Rogue Special Mode None Game No. 175 Rogue 175 Adventurer 0 Explorer 0 Win Type - Total 1 Types 1/0/0/0/0/0/0/0/0/0 Lore% 49 Gallery% 38 Achievement% 38 Wizard Run 0 Options --------- Layout 0 ASCII 0 Keyboard 1 Movement Arrows Keybinds 0 Fullscreen 1 Font 18/Smallcaps Map View 38x25 Zoom Use 43% Tactical HUD 1 Map Filters NONE Filters NONE Steam 1 RUN: a222efa7-eceb-44e4-a0a3-ac487b9df804